bitfinex/quotes_ETHUSD_20230403
["timestamp","ask_amount","ask_price","bid_price","bid_amount"]
[1680516589419,0.29846542,1808.9,1808.8,0.43725747]
[1680516590128,1.12592274,1808.9,1808.8,0.43725747]
[1680516591097,1.51289274,1808.9,1808.8,0.006]
[1680516595195,1.51289274,1808.9,1808.7,0.58012877]
[1680516595196,2.28684274,1808.9,1808.7,0.006]
[1680516595531,2.28684274,1808.9,1808.6,0.58012877]
[1680516599031,2.28684274,1808.9,1808.6,0.58612877]
[1680516599232,1.51289274,1808.9,1808.7,0.63874165]
[1680516599410,1.51289274,1808.9,1808.7,0.05861288]
[1680516599609,1.51289274,1808.9,1808.7,0.63874165]
[1680516600197,1.51289274,1808.9,1808.7,0.73152246]
[1680516602825,1.12592274,1808.9,1808.7,0.73752246]
[1680516603647,1.12592274,1808.9,1808.7,0.73152246]
[1680516606513,1.51289274,1808.9,1808.7,0.73152246]
[1680516606713,1.51289274,1808.9,1808.7,1.00744923]
[1680516609449,1.51289274,1808.9,1808.7,1.00744923]
[1680516611227,1.12592274,1808.9,1808.8,0.58012877]
[1680516613415,0.93244274,1808.9,1808.8,0.58012877]
[1680516613622,0.93244274,1808.9,1808.8,0.58612877]
[1680516613822,1.12592274,1808.9,1808.8,0.58012877]
[1680516614023,1.12592274,1808.9,1808.8,0.95264821]
[1680516615924,1.12592274,1808.9,1808.8,0.95864821]
[1680516617061,1.12592274,1808.9,1808.8,0.95264821]
[1680516617764,1.12592274,1808.9,1808.8,0.95864821]
[1680516620234,1.12592274,1808.9,1808.8,0.95264821]
[1680516630699,0.11000001,1809.0,1808.8,10.93041549]
[1680516630998,0.11000001,1809.0,1808.9,12.16455037]
[1680516631140,0.11000001,1809.0,1808.9,13.89311496]
[1680516631349,0.11000001,1809.0,1808.9,12.74097373]
[1680516631976,0.11000001,1809.0,1808.9,12.45936339]
[1680516632145,0.11000001,1809.0,1808.9,11.77436339]
[1680516633683,0.11000001,1809.0,1808.9,12.05077339]
[1680516633852,0.11000001,1809.0,1808.9,11.77436339]
[1680516634551,0.11000001,1809.0,1808.9,12.0622121]
[1680516635867,0.11000001,1809.0,1808.9,11.77178566]
[1680516636254,0.11000001,1809.0,1808.9,12.93034022]
[1680516636454,0.11000001,1809.0,1808.9,12.0622121]
[1680516636654,0.11000001,1809.0,1808.9,12.0682121]
[1680516638814,0.11000001,1809.0,1808.9,12.65950926]
[1680516640223,0.11000001,1809.0,1808.9,13.34550926]
[1680516640386,0.11000001,1809.0,1808.9,12.1869547]
[1680516640815,0.11000001,1809.0,1808.9,12.4633647]
[1680516642607,0.11000001,1809.0,1808.9,13.62191926]
[1680516642823,0.11000001,1809.0,1808.9,13.3070321]
[1680516643122,0.11000001,1809.0,1808.9,17.17431696]
[1680516643293,0.11000001,1809.0,1808.9,17.17431994]
[1680516643508,0.11000001,1809.0,1808.9,16.3070321]
[1680516643883,0.11000001,1809.0,1808.9,17.17415169]
[1680516644495,0.11000001,1809.0,1808.9,16.3070321]
[1680516645886,0.11000001,1809.0,1808.9,17.17403547]
[1680516646725,0.11000001,1809.0,1808.9,16.3070321]
[1680516649023,0.11000001,1809.0,1808.9,16.44356818]
[1680516650028,0.11000001,1809.0,1808.9,17.31033067]
[1680516650395,0.11000001,1809.0,1808.9,17.3103271]
[1680516652909,0.11000001,1809.0,1808.9,16.44356818]
[1680516653315,0.11000001,1809.0,1808.9,17.31027515]
[1680516653503,0.11000001,1809.0,1808.9,16.44356818]
[1680516653904,0.11000001,1809.0,1808.9,17.31027265]
[1680516654103,0.10717186,1809.0,1808.9,16.43756818]
[1680516654712,0.10717186,1809.0,1808.9,17.30426931]
[1680516654916,0.10717186,1809.0,1808.9,16.43756818]
[1680516659899,0.10717186,1809.0,1808.9,15.75156818]
[1680516664054,0.10717186,1809.0,1808.9,14.49730947]
[1680516664829,0.10717186,1809.0,1808.9,15.05012947]
[1680516665024,0.10717186,1809.0,1808.9,15.73612947]
[1680516668253,0.10717186,1809.0,1808.9,17.17629437]
[1680516668614,0.10717186,1809.0,1808.9,16.01773981]
[1680516668957,0.10717186,1809.0,1808.9,17.1741236]
[1680516669128,0.10717186,1809.0,1808.9,17.17201092]
[1680516669856,0.10717186,1809.0,1808.9,16.01562713]
[1680516673952,0.10717186,1809.0,1808.9,14.57546223]
[1680516675859,0.10717186,1809.0,1808.9,16.3135767]
[1680516682657,0.10717186,1809.0,1808.9,15.6275767]
[1680516686084,0.10717186,1809.0,1808.9,13.88946223]
[1680516686651,0.10717186,1809.0,1808.9,15.62853965]
[1680516686886,0.10717186,1809.0,1808.9,13.88946223]
[1680516689714,0.10717186,1809.0,1808.9,15.62891646]
[1680516690020,0.10717186,1809.0,1808.9,13.88946223]
[1680516690205,0.10717186,1809.0,1808.9,15.62902364]
[1680516690399,0.10717186,1809.0,1808.9,13.88946223]
[1680516691114,0.10717186,1809.0,1808.9,15.39901262]
[1680516691305,0.10717186,1809.0,1808.9,15.39906188]
[1680516691684,0.10717186,1809.0,1808.9,13.65946223]
[1680516692483,0.10717186,1809.0,1808.9,14.34546223]
[1680516692696,0.10717186,1809.0,1808.9,14.57546223]
[1680516694030,0.10450718,1809.0,1808.9,14.57546223]
[1680516697108,0.10450718,1809.0,1808.9,16.60326244]
[1680516699412,0.10450718,1809.0,1808.9,17.29365292]
[1680516700639,0.10450718,1809.0,1808.9,17.06365292]
[1680516701948,0.10450718,1809.0,1808.9,17.29365292]
[1680516704810,0.10450718,1809.0,1808.9,16.60765292]
[1680516713270,0.06450719,1809.3,1808.9,16.60765292]
[1680516713467,0.06450719,1809.3,1809.2,7.25660913]
[1680516713771,0.06450719,1809.3,1809.2,11.10946641]
[1680516719094,0.06450719,1809.3,1809.2,11.12090322]
[1680516730772,0.06450719,1809.3,1809.2,11.12044101]
[1680516730978,0.06450719,1809.3,1809.2,9.67329409]
[1680516731567,0.06450719,1809.3,1809.2,10.98140651]
[1680516732895,0.06450719,1809.3,1809.2,9.67329409]
[1680516733102,0.06450719,1809.3,1809.2,9.44329409]
[1680516736042,0.01450719,1809.3,1809.2,9.44329409]
[1680516737604,0.01450719,1809.3,1809.2,1.16454799]
[1680516737800,0.70450719,1809.3,1809.2,2.30383376]
[1680516738000,1.39450719,1809.3,1809.2,1.98763799]
[1680516738238,2.02572797,1809.3,1809.2,1.7039871]
[1680516738440,2.02572797,1809.3,1809.2,1.1452571]
[1680516738949,2.02572797,1809.3,1809.2,2.30380509]
[1680516739240,3.03172797,1809.3,1809.2,0.8688971]
[1680516740128,3.03172797,1809.3,1809.2,1.44815738]
[1680516740338,3.03172797,1809.3,1809.2,1.44815316]
[1680516740545,3.03172797,1809.3,1809.2,0.57925606]
[1680516741621,3.03172797,1809.3,1809.2,1.44815316]
[1680516742039,2.34172797,1809.3,1809.2,1.1512571]
[1680516743146,2.34172797,1809.3,1809.2,1.1452571]
[1680516743923,2.34172797,1809.3,1809.2,1.72437958]
[1680516744123,2.34172797,1809.3,1809.2,1.1452571]
[1680516745061,2.34172797,1809.3,1809.2,1.72437888]
[1680516745851,2.34172797,1809.3,1809.2,1.72432502]
[1680516746069,2.34172797,1809.3,1809.2,0.57906792]
[1680516746439,1.34172797,1809.3,1809.2,0.57906792]
[1680516746640,1.33572797,1809.3,1809.2,0.57906792]
[1680516747061,1.33572797,1809.3,1809.2,1.72432502]
[1680516747376,1.34172797,1809.3,1809.2,1.44796502]
[1680516747923,1.34172797,1809.3,1809.2,0.57906792]
[1680516748195,1.33572797,1809.3,1809.2,0.57906792]
[1680516748984,1.33572797,1809.3,1809.2,0.58506792]
[1680516749789,1.33572797,1809.3,1809.2,1.45396502]
[1680516750304,1.33572797,1809.3,1809.2,0.58506792]
[1680516750673,1.33572797,1809.3,1809.2,1.45396502]
[1680516750891,1.33572797,1809.3,1809.2,0.58506792]
[1680516753041,1.33572797,1809.3,1809.0,7.81357347]
[1680516753253,1.33572797,1809.3,1809.2,0.006]
[1680516753454,1.33572797,1809.3,1809.1,3.07012728]
[1680516753757,1.33572797,1809.3,1809.2,0.006]
[1680516755848,1.33572797,1809.3,1809.2,0.28236]
[1680516756210,1.33572797,1809.3,1809.2,3.92987001]
[1680516756396,1.33572797,1809.3,1809.2,3.37714001]
[1680516756601,1.33572797,1809.3,1809.2,3.37114001]
[1680516756802,1.33572797,1809.3,1809.1,0.28037]
[1680516757040,1.33572797,1809.3,1809.1,0.002]
[1680516757309,1.33572797,1809.3,1809.1,0.27837]
[1680516757508,1.33572797,1809.3,1809.1,0.002]
[1680516757907,1.33572797,1809.3,1809.1,0.27837]
[1680516758139,1.33572797,1809.3,1809.1,0.45098635]
[1680516758449,1.33572797,1809.3,1809.1,0.27637]
[1680516758745,1.33572797,1809.3,1809.2,0.002]
[1680516766215,1.33572797,1809.3,1809.1,0.002]
[1680516768115,1.33572797,1809.3,1809.1,0.27838]
[1680516768615,1.33572797,1809.3,1809.2,0.002]
[1680516770156,1.33572797,1809.3,1809.1,0.27837]
[1680516770521,1.33572797,1809.3,1809.2,0.002]
[1680516770727,1.33572797,1809.3,1809.1,0.002]
[1680516770949,1.33572797,1809.3,1809.1,0.27838]
[1680516771247,1.33572797,1809.3,1809.2,0.002]
[1680516772047,1.33572797,1809.3,1809.1,0.002]
[1680516773461,1.33572797,1809.3,1809.1,0.27838]
[1680516773823,1.33572797,1809.3,1809.2,0.002]
[1680516774737,1.33572797,1809.3,1809.1,0.002]
[1680516775631,1.33572797,1809.3,1809.1,0.27837]
[1680516775832,1.33572797,1809.3,1809.2,0.002]
[1680516776569,1.33249406,1809.3,1809.2,0.002]
[1680516777945,1.33249406,1809.3,1809.2,0.87086051]
[1680516781845,1.33249406,1809.3,1809.2,2.02856717]
[1680516784089,1.33249406,1809.3,1809.2,1.15970666]
[1680516784290,1.33249406,1809.3,1809.2,2.0296445]
[1680516784660,1.33249406,1809.3,1809.2,0.87193784]
[1680516785039,1.53737151,1809.3,1809.2,0.58002366]
[1680516785286,1.53737151,1809.3,1809.0,1.4499615]
[1680516785287,9.11325151,1809.3,1809.0,1.4499615]
[1680516785496,1.189,1809.1,1809.0,0.58002366]
[1680516785655,2.07246,1809.1,1809.0,0.58002366]
[1680516785845,2.47082745,1809.1,1809.0,0.58002366]
[1680516786405,3.27184616,1809.1,1808.8,0.86993784]
[1680516786605,0.689,1808.9,1808.8,0.86993784]
[1680516787148,1.97586738,1808.9,1808.8,0.86993784]
[1680516787695,1.97586738,1808.9,1808.8,0.88039911]
[1680516790496,1.97586738,1808.9,1808.8,0.01046127]
[1680516792182,1.28686738,1808.9,1808.8,0.01046127]
[1680516793521,1.48034738,1808.9,1808.8,0.01046127]
[1680516793680,1.28686738,1808.9,1808.8,0.01046127]
[1680516796227,1.28686738,1808.9,1808.8,0.58917911]
[1680516800797,1.28686738,1808.9,1808.8,0.01046127]
[1680516800998,1.48034738,1808.9,1808.8,0.01046127]
[1680516801193,1.28686738,1808.9,1808.8,0.01046127]
[1680516802095,1.48034738,1808.9,1808.8,0.01046127]
[1680516802296,1.28686738,1808.9,1808.8,0.01046127]
[1680516806401,1.28449805,1808.9,1808.8,0.01046127]
[1680516808738,1.47797805,1808.9,1808.8,0.01046127]
[1680516808895,1.48967403,1808.9,1808.8,0.01046127]
[1680516809333,1.87664403,1808.9,1808.8,0.01046127]
[1680516809637,4.87664403,1808.9,1808.8,0.01046127]
[1680516809932,4.88264403,1808.9,1808.8,0.01046127]
[1680516811928,5.57164403,1808.9,1808.8,0.01046127]
[1680516812249,5.57464403,1808.9,1808.8,0.01046127]
[1680516812455,6.26464403,1808.9,1808.8,0.01046127]
[1680516812615,6.26464403,1808.9,1808.2,0.58471784]
[1680516812616,16.77541131,1808.9,1808.2,0.58471784]
[1680516812821,0.689,1808.4,1808.1,0.1]
[1680516813045,1.36628745,1808.3,1808.1,0.1]
[1680516813625,1.36628745,1808.3,1808.2,0.01084467]
[1680516813827,2.05528745,1808.3,1808.2,0.01084467]
[1680516814128,6.1583488,1808.3,1808.1,0.1]
[1680516814319,4.16576728,1808.2,1808.1,0.1]
[1680516814523,10.55544728,1808.2,1808.1,0.1]
[1680516814752,13.55844728,1808.2,1808.1,0.1]
[1680516815142,14.54498832,1808.2,1808.1,0.1]
[1680516817858,8.73598832,1808.2,1808.1,0.1]
[1680516818627,14.54498832,1808.2,1808.1,0.1]
[1680516821361,5.94822104,1808.2,1808.1,0.1]
[1680516821574,4.18310104,1808.2,1808.1,0.1]
[1680516821775,1.18010104,1808.2,1808.1,0.1]
[1680516822676,1.18010104,1808.2,1808.1,0.10986584]
[1680516823463,1.56722104,1808.2,1808.1,0.10986584]
[1680516823623,1.56722104,1808.2,1808.1,0.1]
[1680516836579,15.85198832,1808.2,1808.1,0.10616113]
[1680516836760,19.54498832,1808.2,1808.1,0.10616113]
[1680516837280,20.24991227,1808.2,1808.1,0.10616113]
[1680516837474,20.24991227,1808.2,1808.1,0.09629529]
[1680516838853,19.24991227,1808.2,1808.1,0.09629529]
[1680516839050,20.24991227,1808.2,1808.1,0.09629529]
[1680516840279,20.52621056,1808.2,1808.1,0.09629529]
[1680516841292,20.06621056,1808.2,1808.1,0.09629529]
[1680516841504,19.13128661,1808.2,1808.1,0.09629529]
[1680516842161,1.57022104,1808.2,1808.1,0.09629529]
[1680516842393,1.56722104,1808.2,1808.1,0.09629529]
[1680516844176,4.56722104,1808.2,1808.1,0.09629529]
[1680516846611,4.56722104,1808.2,1808.1,0.10616113]
[1680516846612,1.56722104,1808.2,1808.1,0.10616113]
[1680516849212,0.98654104,1808.2,1808.1,0.10616113]
[1680516850431,0.4726638,1808.2,1808.1,0.10616113]
[1680516853837,3.58065,1808.3,1808.1,0.10616113]
[1680516858627,3.57833632,1808.3,1808.1,0.10616113]
[1680516860094,0.4726638,1808.2,1808.1,0.10616113]
[1680516860388,0.6662238,1808.2,1808.1,0.10616113]
[1680516866182,0.4726638,1808.2,1808.1,0.10616113]
[1680516866386,0.4726638,1808.2,1808.1,4.39445841]
[1680516866581,0.4726638,1808.2,1808.1,7.21726288]
[1680516866890,0.4726638,1808.2,1808.1,8.66818954]
[1680516867187,5.0627,1808.8,1808.1,8.6667523]
[1680516867332,5.0567,1808.8,1808.3,1.5005]
[1680516867969,5.0567,1808.8,1808.3,1.224]
[1680516868128,0.42432251,1808.7,1808.4,0.1224]
[1680516868557,3.42432251,1808.7,1808.4,0.1224]
[1680516868765,0.42432251,1808.7,1808.4,0.1224]
[1680516869084,3.42432251,1808.7,1808.4,0.1224]
[1680516872361,3.42432251,1808.7,1808.2,16.8118]
[1680516872562,3.42432251,1808.7,1808.5,0.00957616]
[1680516873515,3.42432251,1808.7,1808.3,0.27649]
[1680516877522,3.42432251,1808.7,1808.2,17.36483]
[1680516878695,3.42047401,1808.7,1808.2,17.36483]
[1680516878900,3.42047401,1808.7,1808.3,1.736483]
[1680516879216,3.42047401,1808.7,1808.3,1.742483]
[1680516879374,3.42047401,1808.7,1808.3,2.018983]
[1680516879574,3.42047401,1808.7,1808.3,1.742483]
[1680516880997,3.61398401,1808.7,1808.3,1.742483]
[1680516881536,4.00099401,1808.7,1808.3,0.006]
[1680516888613,12.59776129,1808.7,1808.3,0.006]
[1680516888813,12.59776129,1808.7,1808.1,0.10429529]
[1680516888814,0.02313343,1808.6,1808.1,0.10429529]
[1680516889013,0.58059,1808.5,1808.1,0.10229529]
[1680516889258,8.71679,1808.5,1808.1,0.09629529]
[1680516889566,8.71979,1808.5,1808.1,0.10229529]
[1680516890149,0.44840737,1808.4,1808.1,0.09829529]
[1680516890361,0.19355,1808.3,1808.1,0.09629529]
[1680516891367,0.58065,1808.3,1808.1,0.09629529]
[1680516893615,0.58065,1808.3,1808.1,0.09280969]
[1680516894717,11.91076728,1808.2,1808.1,0.09280969]
[1680516894841,20.60874728,1808.2,1808.1,0.09280969]
[1680516895178,20.60874728,1808.2,1807.8,0.1]
[1680516895380,0.58074,1808.0,1807.8,0.1]
[1680516896167,0.60387343,1808.0,1807.8,0.1]
[1680516902571,0.58074,1808.0,1807.8,0.1]
[1680516902869,0.19358,1808.0,1807.8,0.1]
[1680516904268,3.19357,1808.1,1807.8,0.1]
[1680516905248,0.43220077,1808.0,1807.8,0.1]
[1680516905470,0.62578077,1808.0,1807.8,0.1]
[1680516907977,0.43220077,1808.0,1807.8,0.1]
[1680516908353,4.8993,1808.4,1807.8,0.37857]
[1680516908654,5.08385,1808.4,1807.9,0.002]
[1680516908853,5.08685,1808.4,1807.9,0.002]
[1680516909048,5.08685,1808.4,1807.8,0.37857]
[1680516909253,0.39254423,1808.3,1807.8,1.886175]
[1680516909464,0.58609423,1808.3,1807.8,2.168745]
[1680516909800,0.39254423,1808.3,1807.8,2.168745]
[1680516910887,0.39254423,1808.3,1807.9,0.002]
[1680516911084,0.39254423,1808.3,1807.9,1.224]
[1680516911294,0.39254423,1808.3,1807.9,1.5354175]
[1680516912045,0.39254423,1808.3,1807.9,0.5899775]
[1680516915228,0.39254423,1808.3,1808.0,2.78776728]
[1680516915426,0.39254423,1808.3,1808.0,3.06430728]
[1680516915924,0.39254423,1808.3,1807.9,0.5979775]
[1680516916128,0.19354,1808.4,1807.9,0.5899775]
[1680516916328,0.5806,1808.5,1807.9,0.5899775]
[1680516916535,0.19354,1808.5,1808.0,0.05899775]
[1680516916836,5.06393,1808.5,1808.0,0.05899775]
[1680516917015,3.0,1808.4,1808.0,0.33553775]
[1680516917219,3.0,1808.4,1808.0,0.05899775]
[1680516917528,3.0,1808.4,1808.0,0.33553775]
[1680516919424,2.99730456,1808.4,1808.0,0.33553775]
[1680516919628,2.99730456,1808.4,1808.0,2.84676503]
[1680516919925,0.1471106,1808.6,1808.1,0.2846765]
[1680516919926,0.7306806,1808.6,1808.1,0.2846765]
[1680516920131,0.33167,1808.3,1808.1,0.2846765]
[1680516921254,0.19353,1808.5,1808.1,0.2846765]
[1680516924264,10.01329728,1808.5,1808.0,0.006]
[1680516924559,4.224,1808.4,1807.8,15.9258]
[1680516924735,9.56624,1808.4,1807.8,16.20237]
[1680516924936,8.34524,1808.4,1807.9,1.620237]
[1680516925159,8.34524,1808.4,1807.9,1.626237]
[1680516925455,8.73232,1808.4,1807.9,1.626237]
[1680516928229,5.1517,1808.4,1807.9,4.41600428]
[1680516928560,5.1517,1808.4,1808.0,0.72014043]
[1680516928792,0.003,1808.4,1808.0,4.09290222]
[1680516928992,5.36093,1808.6,1808.0,4.09290222]
[1680516929160,5.36393,1808.6,1808.0,4.09290222]
[1680516929363,5.36393,1808.6,1808.0,4.09090222]
[1680516929558,5.36393,1808.6,1808.1,0.40909022]
[1680516929889,5.36393,1808.6,1808.1,0.41509022]
[1680516935311,0.67698047,1808.5,1808.1,0.41509022]
[1680516940129,3.67698047,1808.5,1808.1,0.41509022]
[1680516940343,3.67698047,1808.5,1808.1,0.006]
[1680516940843,3.48345047,1808.5,1808.1,0.006]
[1680516941207,3.67698047,1808.5,1808.1,0.006]
[1680516945352,4.06404047,1808.5,1808.1,0.006]
[1680516945553,4.06404047,1808.5,1808.0,0.58499451]
[1680516946131,4.06404047,1808.5,1808.0,0.006]
[1680516946358,4.06404047,1808.5,1807.9,1.45549511]
[1680516946666,4.06404047,1808.5,1808.0,0.57899451]
[1680516947331,4.06404047,1808.5,1807.9,0.58699451]
[1680516948220,4.06404047,1808.5,1807.9,0.008]
[1680516948420,4.06097074,1808.5,1807.9,0.008]
[1680516949620,4.06097074,1808.5,1807.9,0.58699451]
[1680516950223,4.06097074,1808.5,1807.9,0.58499451]
[1680516950754,4.06097074,1808.5,1807.9,0.006]
[1680516951125,4.63697721,1808.5,1807.9,0.58499451]
[1680516951342,4.63697721,1808.5,1808.0,0.05849945]
[1680516951542,4.66011064,1808.5,1807.9,0.58499451]
[1680516952275,5.35011064,1808.5,1807.9,0.58499451]
[1680516952578,5.35311064,1808.5,1807.9,0.58499451]
[1680516953279,4.77710417,1808.5,1807.9,0.58499451]
[1680516953478,5.35011064,1808.5,1807.9,0.58499451]
[1680516953678,5.35311064,1808.5,1807.9,2.35038102]
[1680516962636,5.35311064,1808.5,1807.9,5.1381483]
[1680516962855,0.48338074,1808.5,1808.3,0.686]
[1680516963009,0.48038074,1808.5,1808.3,0.686]
[1680516963212,0.48038074,1808.5,1808.4,0.0686]
[1680516964127,5.1448,1808.8,1808.4,0.0686]
[1680516964511,5.1448,1808.8,1808.3,0.96249]
[1680516964829,5.33829,1808.8,1808.3,0.686]
[1680516965038,3.0,1808.7,1808.3,0.686]
[1680516965243,3.65762459,1808.7,1808.3,0.686]
[1680516967443,3.65762459,1808.7,1808.2,0.86349451]
[1680516967647,3.65762459,1808.7,1808.3,0.08634945]
[1680516970661,3.65762459,1808.7,1808.3,0.36284945]
[1680516972263,3.65762459,1808.7,1808.3,0.36884945]
[1680516973054,3.65762459,1808.7,1808.3,0.36484945]
[1680516973254,3.65762459,1808.7,1808.3,0.08834945]
[1680516973460,3.65762459,1808.7,1808.3,0.08634945]
[1680516973813,3.65762459,1808.7,1808.3,0.36483945]
[1680516973936,3.65762459,1808.7,1808.3,0.36883945]
[1680516975229,3.65762459,1808.7,1808.3,0.36683945]
[1680516975443,3.65762459,1808.7,1808.3,0.36483945]
[1680516975764,3.65762459,1808.7,1808.3,0.36883945]
[1680516979052,3.65762459,1808.7,1808.3,0.09234945]
[1680516979371,3.65762459,1808.7,1808.3,0.36884945]
[1680516980564,3.65762459,1808.7,1808.3,0.006]
[1680516980738,3.85113459,1808.7,1808.2,0.86349451]
[1680516980943,3.85113459,1808.7,1808.2,0.2845]
[1680516981149,3.85113459,1808.7,1808.2,0.86349451]
[1680516981352,3.65762459,1808.7,1808.2,0.86349451]
[1680516981544,3.85112459,1808.7,1808.2,2.66430002]
[1680516982153,3.65762459,1808.7,1808.2,2.66430002]
[1680516982354,3.65762459,1808.7,1808.2,2.08530551]
[1680516982754,3.85113459,1808.7,1808.2,0.008]
[1680516982934,4.53513459,1808.7,1808.2,0.008]
[1680516983136,4.92214459,1808.7,1808.2,0.008]
[1680516983458,4.94527802,1808.7,1808.2,0.008]
[1680516986275,0.65762459,1808.7,1808.4,0.69]
[1680516986570,0.65762459,1808.7,1808.6,0.96545]
[1680516986571,0.65556171,1808.7,1808.6,0.96545]
[1680516986732,0.65556171,1808.7,1808.6,10.11512728]
[1680516986933,0.65556171,1808.7,1808.6,10.11712728]
[1680516987179,0.11000001,1809.1,1808.6,11.27612401]
[1680516987475,0.11000001,1809.1,1808.8,0.27642]
[1680516987869,0.11000001,1809.1,1808.8,0.27842]
[1680516988371,0.83767502,1809.0,1808.8,0.27842]
[1680516990122,0.83767502,1809.0,1808.8,0.83127]
[1680516990405,0.83767502,1809.0,1808.7,0.008]
[1680516990572,0.83767502,1809.0,1808.7,0.27643]
[1680516992402,0.83767502,1809.0,1808.7,0.82931]
[1680517002514,0.83767502,1809.0,1808.7,0.83131]
[1680517007940,0.83397512,1809.0,1808.7,0.83131]
[1680517008087,0.83397512,1809.0,1808.8,0.083131]
[1680517008288,0.83397512,1809.0,1808.9,0.27641]
[1680517012201,0.83397512,1809.0,1808.8,0.635981]
[1680517012403,0.83397512,1809.0,1808.9,0.27641]
[1680517012916,0.83397512,1809.0,1808.9,0.27841]
[1680517013096,0.83397512,1809.0,1808.9,0.3698491]
[1680517014233,0.83397512,1809.0,1808.9,0.0934391]
[1680517014400,0.83397512,1809.0,1808.9,0.002]
[1680517021759,0.83397512,1809.0,1808.8,0.002]
[1680517022252,0.83397512,1809.0,1808.7,0.002]
[1680517022635,0.83397512,1809.0,1808.6,0.002]
[1680517026258,0.83397512,1809.0,1808.6,0.27845]
[1680517026562,0.83397512,1809.0,1808.7,0.002]
[1680517027062,0.83397512,1809.0,1808.6,0.002]
[1680517027265,0.83397512,1809.0,1808.6,0.27845]
[1680517027438,0.83397512,1809.0,1808.6,0.002]
[1680517027636,0.83397512,1809.0,1808.7,0.002]
[1680517027957,0.83397512,1809.0,1808.6,1.57078545]
[1680517028366,0.83397512,1809.0,1808.7,0.002]
[1680517028777,1.02744512,1809.0,1808.7,0.002]
[1680517029070,10.493,1808.8,1808.4,0.58299451]
[1680517029365,1.07704,1808.6,1808.2,0.57899451]
[1680517029576,4.29368343,1808.6,1808.1,0.58699451]
[1680517029725,4.29368343,1808.6,1808.1,1.44949511]
[1680517030065,4.29368343,1808.6,1808.1,0.58099451]
[1680517030255,0.86684102,1808.5,1808.1,0.58099451]
[1680517030457,0.19354,1808.4,1808.2,0.57899451]
[1680517030937,0.19354,1808.4,1808.0,0.58499451]
[1680517030938,0.58068,1808.2,1808.0,0.58499451]
[1680517031142,0.21669343,1808.3,1808.0,0.57899451]
[1680517031341,0.21669343,1808.3,1807.9,0.58699451]
[1680517031732,0.21669343,1808.3,1807.9,1.93451469]
[1680517031947,0.21669343,1808.3,1807.9,2.80301529]
[1680517032143,0.21669343,1808.3,1807.9,1.93451469]
[1680517032837,0.21449272,1808.3,1807.9,1.93451469]
[1680517034642,0.21449272,1808.3,1807.9,1.35552018]
[1680517037070,0.19356,1808.3,1808.0,0.13555202]
[1680517037267,4.9223,1808.4,1808.0,0.13555202]
[1680517037454,4.9193,1808.4,1808.0,0.13755202]
[1680517038656,5.11284,1808.4,1808.0,0.13755202]
[1680517038853,5.11584,1808.4,1808.0,0.13755202]
[1680517040281,0.86306761,1808.3,1808.0,0.13755202]
[1680517041785,0.86306761,1808.3,1808.0,0.14021526]
[1680517042079,0.86306761,1808.3,1808.0,2.92798254]
[1680517042279,0.86306761,1808.3,1808.1,0.29279825]
[1680517043349,1.05661761,1808.3,1808.1,0.29279825]
[1680517043544,0.86306761,1808.3,1808.1,0.29279825]
[1680517046092,0.86306761,1808.3,1808.2,0.69266294]
[1680517046297,0.86306761,1808.3,1808.2,0.96917294]
[1680517046467,0.86306761,1808.3,1808.2,1.09557006]
[1680517047191,0.19351,1808.7,1808.2,1.09557006]
[1680517047690,15.1858,1808.8,1808.2,1.09557006]
[1680517048055,3.0,1808.7,1808.2,1.09557006]
[1680517050491,3.0,1808.7,1808.2,3.88333734]
[1680517050684,3.0,1808.7,1808.3,0.38833373]
[1680517050997,3.0,1808.7,1808.3,0.66682373]
[1680517052090,3.0,1808.7,1808.3,0.39033373]
[1680517055196,0.86354186,1808.6,1808.3,0.39033373]
[1680517056092,3.0,1808.7,1808.3,0.39033373]
[1680517056892,2.9963629,1808.7,1808.3,0.39633373]
[1680517060838,2.9963629,1808.7,1808.3,0.67283373]
[1680517061040,2.9963629,1808.7,1808.4,0.06728337]
[1680517062034,3.1898729,1808.7,1808.4,0.06728337]
[1680517062451,2.9963629,1808.7,1808.4,0.06728337]
[1680517062606,3.1898729,1808.7,1808.4,0.06728337]
[1680517062810,3.1898629,1808.7,1808.4,0.06728337]
[1680517063205,2.9963629,1808.7,1808.4,0.06728337]
[1680517063611,3.1898729,1808.7,1808.3,0.39633373]
[1680517063811,3.1898729,1808.7,1808.3,0.39033373]
[1680517064255,3.1898729,1808.7,1808.3,0.39233373]
[1680517064556,3.5768829,1808.7,1808.3,0.002]
[1680517064916,3.6863629,1808.7,1808.2,0.01066294]
[1680517065112,3.8798729,1808.7,1808.2,0.00466294]
[1680517065535,3.8798729,1808.7,1808.3,0.00849033]
[1680517066344,4.2668829,1808.7,1808.3,0.00849033]
[1680517069127,3.8798729,1808.7,1808.3,0.00849033]
[1680517069328,4.2668829,1808.7,1808.3,0.00849033]
[1680517070165,0.86498121,1808.6,1808.3,0.00849033]
[1680517070462,1.05850121,1808.6,1808.3,0.00849033]
[1680517079137,1.44553121,1808.6,1808.3,0.00849033]
[1680517081580,1.44314197,1808.6,1808.3,0.00849033]
[1680517085691,7.25214197,1808.6,1808.3,0.00849033]
[1680517085855,7.25514197,1808.6,1808.3,0.58748484]
[1680517086381,7.25514197,1808.6,1808.3,0.00849033]
[1680517086707,7.25514197,1808.6,1808.3,0.58748484]
[1680517087794,0.86559197,1808.6,1808.3,0.58748484]
[1680517087994,0.71259197,1808.6,1808.3,0.58748484]
[1680517088360,9.6918729,1808.7,1808.3,0.58748484]
[1680517088981,10.0788829,1808.7,1808.3,0.58748484]
[1680517089189,0.87677181,1808.6,1808.3,0.58748484]
[1680517089391,0.19353,1808.5,1808.3,0.00849033]
[1680517089759,1.45733181,1808.6,1808.3,0.58748484]
[1680517094475,1.07029181,1808.6,1808.3,0.58748484]
[1680517097916,1.07029181,1808.6,1808.3,0.58748484]
[1680517101279,0.87677181,1808.6,1808.4,0.57899451]
[1680517101708,0.87677181,1808.6,1808.4,0.57614007]
[1680517101893,0.87677181,1808.6,1808.3,1.1449906]
[1680517102102,0.87677181,1808.6,1808.3,1.1449806]
[1680517102314,3.0023629,1808.7,1808.4,0.11449806]
[1680517102514,2.9963629,1808.7,1808.4,0.11449806]
[1680517103126,5.73340647,1808.8,1808.4,0.39097806]
[1680517103127,5.1574,1808.8,1808.4,0.39097806]
[1680517103424,0.83808537,1808.6,1808.4,0.39097806]
[1680517104325,5.1514,1808.8,1808.4,0.39097806]
[1680517105601,5.1514,1808.8,1808.5,0.00916286]
[1680517111324,0.003,1808.8,1808.5,0.28562286]
[1680517111524,3.0,1808.8,1808.5,0.10446995]
[1680517112213,3.83981656,1808.9,1808.5,0.10446995]